bitfinex/quotes_BTCUSD_20250901
["timestamp","ask_amount","ask_price","bid_price","bid_amount"]
[1756708077759,0.16001465,108120.0,108110.0,0.18499676]
[1756708078404,0.15801465,108120.0,108110.0,0.18499676]
[1756708078580,0.3419943,108120.0,108110.0,0.18499676]
[1756708078798,0.34249965,108120.0,108110.0,0.18499676]
[1756708079170,0.15752,108120.0,108110.0,0.18499676]
[1756708079531,0.15901465,108120.0,108110.0,0.18499676]
[1756708080259,0.16001465,108120.0,108110.0,0.18499676]
[1756708080641,0.16001465,108120.0,108110.0,0.34043676]
[1756708080642,0.00449465,108120.0,108110.0,0.34043676]
[1756708081480,0.1894743,108120.0,108110.0,0.34043676]
[1756708081655,0.003,108120.0,108110.0,0.34043676]
[1756708081853,0.1894743,108120.0,108110.0,0.34043676]
[1756708082079,0.18797965,108120.0,108110.0,0.18499676]
[1756708082284,0.18797965,108120.0,108110.0,0.34043676]
[1756708082444,0.18797965,108120.0,108110.0,0.38170265]
[1756708082649,0.18797965,108120.0,108110.0,0.22626265]
[1756708083250,0.003,108120.0,108110.0,0.22626265]
[1756708083470,0.00449465,108120.0,108110.0,0.22626265]
[1756708088691,0.1894743,108120.0,108110.0,0.38166265]
[1756708088914,0.003,108120.0,108110.0,0.38166265]
[1756708089118,0.00932669,108120.0,108110.0,0.38166265]
[1756708089556,0.19430634,108120.0,108110.0,0.38166265]
[1756708089751,0.00783204,108120.0,108110.0,0.38166265]
[1756708089943,0.00932669,108120.0,108110.0,0.38166265]
[1756708091368,0.51782192,108130.0,108120.0,0.18497965]
[1756708092830,0.52082192,108130.0,108120.0,0.18497965]
[1756708093033,0.52282192,108130.0,108120.0,0.18497965]
[1756708093788,0.52282192,108130.0,108110.0,0.22626265]
[1756708093968,0.18601725,108120.0,108110.0,0.38166265]
[1756708094169,0.18497965,108120.0,108110.0,0.38166265]
[1756708095735,0.67323461,108120.0,108110.0,0.04126589]
[1756708096033,0.18499676,108110.0,108100.0,0.34055607]
[1756708096973,0.51785172,108110.0,108100.0,0.04154943]
[1756708097381,0.51785172,108110.0,108100.0,0.2265633]
[1756708097534,0.63860962,108120.0,108110.0,0.18499676]
[1756708097735,0.36817465,108120.0,108110.0,0.18499676]
[1756708097936,0.59815004,108130.0,108120.0,0.18497965]
[1756708098161,0.84653005,108130.0,108120.0,0.18497965]
[1756708098336,0.87432205,108130.0,108110.0,0.18499676]
[1756708098515,0.0010376,108120.0,108110.0,0.18499676]
[1756708098879,0.18601725,108120.0,108110.0,0.18499676]
[1756708099106,0.18497965,108120.0,108110.0,0.18499676]
[1756708099311,0.87432205,108130.0,108110.0,0.18499676]
[1756708099483,0.0010376,108120.0,108110.0,0.18499676]
[1756708099917,0.1574376,108120.0,108110.0,0.18499676]
[1756708100126,0.67527221,108120.0,108100.0,0.23581399]
[1756708100331,0.18499676,108110.0,108100.0,0.23581399]
[1756708100540,0.67423461,108120.0,108100.0,0.39121399]
[1756708100744,0.67423461,108120.0,108110.0,0.18499676]
[1756708100948,0.67423461,108120.0,108100.0,0.39121399]
[1756708101291,0.67423461,108120.0,108110.0,0.18499676]
[1756708101889,0.67323461,108120.0,108110.0,0.18499676]
[1756708102270,0.67423461,108120.0,108110.0,0.18499676]
[1756708102650,0.34137965,108120.0,108110.0,0.18499676]
[1756708102859,0.67323461,108120.0,108110.0,0.18499676]
[1756708103062,0.67323461,108120.0,108100.0,0.39121399]
[1756708103264,0.0010376,108110.0,108100.0,0.39121399]
[1756708103468,0.67423461,108120.0,108110.0,0.18499676]
[1756708103712,0.67423461,108120.0,108100.0,0.39121399]
[1756708105249,0.67423461,108120.0,108110.0,0.18499676]
[1756708105453,0.67323461,108120.0,108110.0,0.18499676]
[1756708105866,0.67423461,108120.0,108110.0,0.18499676]
[1756708106289,0.33385496,108120.0,108110.0,0.18499676]
[1756708106416,0.1554,108120.0,108110.0,0.18499676]
[1756708106617,0.71892205,108130.0,108120.0,0.18497965]
[1756708106817,0.87432205,108130.0,108120.0,0.18497965]
[1756708107020,0.78134204,108130.0,108120.0,0.18497965]
[1756708107223,0.75355004,108130.0,108120.0,0.18497965]
[1756708108598,0.18497965,108120.0,108110.0,0.18499676]
[1756708109988,0.18597965,108120.0,108110.0,0.18499676]
[1756708110807,0.001,108120.0,108110.0,0.18499676]
[1756708111815,0.18597965,108120.0,108110.0,0.18499676]
[1756708112810,0.18499676,108110.0,108100.0,0.23581399]
[1756708113034,0.1554,108110.0,108100.0,0.23581399]
[1756708113456,0.1442882,108110.0,108100.0,0.23581399]
[1756708114559,0.1442882,108110.0,108100.0,0.23681399]
[1756708114768,0.32928496,108110.0,108100.0,0.23681399]
[1756708114966,0.32928496,108110.0,108100.0,0.2275633]
[1756708115825,0.1452882,108110.0,108100.0,0.2275633]
[1756708116171,0.33028496,108110.0,108100.0,0.2275633]
[1756708118016,0.33028496,108110.0,108100.0,0.18615607]
[1756708120681,0.1452882,108110.0,108100.0,0.22690491]
[1756708122607,0.001,108110.0,108100.0,0.22690491]
[1756708124046,0.001,108110.0,108100.0,0.38230491]
[1756708125357,0.001,108110.0,108100.0,0.22690491]
[1756708125563,0.001,108110.0,108100.0,0.38230491]
[1756708131775,0.001,108110.0,108100.0,0.22690491]
[1756708131986,0.001,108110.0,108100.0,0.38230491]
[1756708133030,0.001,108110.0,108100.0,0.22690491]
[1756708133237,0.51885172,108110.0,108100.0,0.22690491]
[1756708133384,0.18599676,108110.0,108100.0,0.38230491]
[1756708134006,0.18599676,108110.0,108100.0,0.22690491]
[1756708134276,0.51885172,108110.0,108100.0,0.22690491]
[1756708134478,0.51885172,108110.0,108100.0,0.04189104]
[1756708135578,0.51885172,108110.0,108100.0,0.0011422]
[1756708136584,0.61183173,108110.0,108100.0,0.0011422]
[1756708138115,0.63962873,108110.0,108100.0,0.0011422]
[1756708138321,0.71070873,108110.0,108100.0,0.0011422]
[1756708139322,0.86610873,108110.0,108100.0,0.0011422]
[1756708143177,1.20610873,108110.0,108100.0,0.0011422]
[1756708144884,1.20610873,108110.0,108100.0,0.0001422]
[1756708145531,1.20810873,108110.0,108100.0,0.0001422]
[1756708145736,1.61090251,108110.0,108100.0,0.0001422]
[1756708145963,1.27804755,108110.0,108100.0,0.0001422]
[1756708146406,1.12464755,108110.0,108100.0,0.0001422]
[1756708146624,1.28016755,108110.0,108100.0,0.0001422]
[1756708147066,1.27816755,108110.0,108100.0,0.0001422]
[1756708147734,1.28016755,108110.0,108100.0,0.0001422]
[1756708149387,1.66302251,108110.0,108100.0,0.0001422]
[1756708150242,1.66298251,108110.0,108100.0,0.0001422]
[1756708151553,1.33020755,108110.0,108100.0,0.0001422]
[1756708151766,1.07464755,108110.0,108100.0,0.0001422]
[1756708151980,1.28016755,108110.0,108100.0,0.0001422]
[1756708152205,1.23016755,108110.0,108100.0,0.0001422]
[1756708153323,1.28016755,108110.0,108100.0,0.0001422]
[1756708156525,1.12464755,108110.0,108100.0,0.0001422]
[1756708156748,1.23012755,108110.0,108100.0,0.0001422]
[1756708157440,1.28012755,108110.0,108100.0,0.0001422]
[1756708157616,1.07464755,108110.0,108100.0,0.0001422]
[1756708157819,1.23012755,108110.0,108100.0,0.0001422]
[1756708158646,1.12464755,108110.0,108100.0,0.0001422]
[1756708158878,1.23008755,108110.0,108100.0,0.0001422]
[1756708161420,1.20914873,108110.0,108100.0,0.0001422]
[1756708162496,1.05370873,108110.0,108100.0,0.0001422]
[1756708162692,1.20914873,108110.0,108100.0,0.0001422]
[1756708166355,1.54200369,108110.0,108100.0,0.0001422]
[1756708166576,1.59347899,108110.0,108100.0,0.0001422]
[1756708166786,1.62440089,108110.0,108100.0,0.0001422]
[1756708167000,1.59386441,108110.0,108100.0,0.0001422]
[1756708167211,1.56294251,108110.0,108100.0,0.0001422]
[1756708178448,1.61294251,108110.0,108100.0,0.0001422]
[1756708178661,1.66294251,108110.0,108100.0,0.0001422]
[1756708185629,1.50750251,108110.0,108100.0,0.0001422]
[1756708185828,1.66294251,108110.0,108100.0,0.0001422]
[1756708192487,1.72440089,108110.0,108100.0,1e-08]
[1756708193422,1.72240089,108110.0,108100.0,1e-08]
[1756708193625,1.69186441,108110.0,108100.0,1e-08]
[1756708194778,1.68986441,108110.0,108100.0,1e-08]
[1756708195007,1.69186441,108110.0,108100.0,1e-08]
[1756708195820,1.69686441,108110.0,108100.0,1e-08]
[1756708197567,1.78981417,108110.0,108100.0,1e-08]
[1756708199964,1.63437417,108110.0,108100.0,1e-08]
[1756708200175,1.17764755,108110.0,108100.0,1e-08]
[1756708200417,0.53925377,108110.0,108100.0,1e-08]
[1756708200647,0.87210873,108110.0,108100.0,1e-08]
[1756708201078,1.21010873,108110.0,108100.0,1e-08]
[1756708201502,1.21410873,108110.0,108100.0,1e-08]
[1756708201885,1.05370873,108110.0,108100.0,1e-08]
[1756708202085,1.20510873,108110.0,108100.0,1e-08]
[1756708202724,1.20810873,108110.0,108100.0,1e-08]
[1756708203894,1.05570873,108110.0,108100.0,1e-08]
[1756708204101,0.71570873,108110.0,108100.0,0.18501388]
[1756708204316,0.030797,108110.0,108100.0,0.18501388]
[1756708204522,0.1584,108110.0,108100.0,0.18501388]
[1756708205020,0.1604,108110.0,108100.0,0.18501388]
[1756708205531,0.1554,108110.0,108100.0,0.18501388]
[1756708205980,0.1594,108110.0,108100.0,0.18501388]
[1756708206536,0.1564,108110.0,108100.0,0.18501388]
[1756708206941,0.1584,108110.0,108100.0,0.18501388]
[1756708208255,0.003,108110.0,108100.0,0.18501388]
[1756708208679,0.1584,108110.0,108100.0,0.18501388]
[1756708209311,0.1564,108110.0,108100.0,0.18501388]
[1756708209528,0.1554,108110.0,108100.0,0.18501388]
[1756708209739,0.1574,108110.0,108100.0,0.18501388]
[1756708209957,0.1574,108110.0,108100.0,0.18601388]
[1756708210359,0.48825496,108110.0,108100.0,0.18601388]
[1756708210505,0.34039676,108110.0,108100.0,0.18601388]
[1756708210711,0.34139676,108110.0,108100.0,0.18601388]
[1756708211124,0.76723173,108110.0,108100.0,0.00100001]
[1756708211339,0.83835173,108110.0,108100.0,0.00100001]
[1756708211765,0.86614873,108110.0,108100.0,0.00100001]
[1756708212629,1.20614873,108110.0,108100.0,1e-08]
[1756708212844,1.20514873,108110.0,108100.0,1e-08]
[1756708213051,1.20614873,108110.0,108100.0,1e-08]
[1756708213278,0.71789377,108110.0,108100.0,1e-08]
[1756708213476,1.20710873,108110.0,108100.0,1e-08]
[1756708213895,1.20510873,108110.0,108100.0,1e-08]
[1756708214346,1.20610873,108110.0,108100.0,0.00100001]
[1756708215557,1.20610873,108110.0,108100.0,1e-08]
[1756708216430,1.20810873,108110.0,108100.0,1e-08]
[1756708217325,0.87525377,108110.0,108100.0,1e-08]
[1756708217527,1.20810873,108110.0,108100.0,1e-08]
[1756708218197,0.53525377,108110.0,108100.0,0.18501388]
[1756708219497,0.86810873,108110.0,108100.0,0.18501388]
[1756708219698,0.53525377,108110.0,108100.0,0.18501388]
[1756708220856,0.53525377,108110.0,108100.0,1e-08]
[1756708221265,0.86810873,108110.0,108100.0,1e-08]
[1756708222949,0.86810873,108110.0,108100.0,0.18501388]
[1756708224149,0.86810873,108110.0,108100.0,1e-08]
[1756708224297,0.86810873,108110.0,108100.0,0.18501388]
[1756708225212,0.86810873,108110.0,108100.0,1e-08]
[1756708233761,0.53525377,108110.0,108100.0,1e-08]
[1756708233960,0.86810873,108110.0,108100.0,1e-08]
[1756708236715,0.37989377,108110.0,108100.0,1e-08]
[1756708236910,0.86810873,108110.0,108100.0,1e-08]
[1756708237452,0.71274873,108110.0,108100.0,1e-08]
[1756708237662,0.86810873,108110.0,108100.0,1e-08]
[1756708240505,0.86810873,108110.0,108100.0,0.18501388]
[1756708240710,0.86810873,108110.0,108100.0,1e-08]
[1756708242728,0.86810873,108110.0,108100.0,0.18501388]
[1756708242956,0.71274873,108110.0,108100.0,0.18501388]
[1756708243165,0.86810873,108110.0,108100.0,0.18501388]
[1756708243343,0.86810873,108110.0,108100.0,1e-08]
[1756708245312,0.53525377,108110.0,108100.0,0.18501388]
[1756708245515,0.86810873,108110.0,108100.0,0.18501388]
[1756708246263,0.101917,108110.0,108100.0,0.18501388]
[1756708246456,0.003,108110.0,108100.0,0.18501388]
[1756708246677,0.15856,108110.0,108100.0,0.18501388]
[1756708247666,0.001,108110.0,108100.0,0.18501388]
[1756708247908,0.15656,108110.0,108100.0,0.18501388]
[1756708248542,0.15756,108110.0,108100.0,0.18501388]
[1756708248929,0.15656,108110.0,108100.0,0.18501388]
[1756708249453,0.15656,108110.0,108100.0,0.18601388]
[1756708253992,0.001,108110.0,108100.0,0.51886884]
[1756708254193,0.15656,108110.0,108100.0,0.18601388]
[1756708257136,0.67441172,108110.0,108100.0,0.00100001]
[1756708257272,0.34155676,108110.0,108100.0,0.18601388]
[1756708257475,0.67441172,108110.0,108100.0,0.00100001]
[1756708257834,0.67441172,108110.0,108100.0,0.18601388]
[1756708258980,0.34155676,108110.0,108100.0,0.18601388]
[1756708259200,0.67441172,108110.0,108100.0,0.18601388]
[1756708260546,0.34155676,108110.0,108100.0,0.18601388]
[1756708260746,0.67441172,108110.0,108100.0,0.18601388]
[1756708261191,0.34155676,108110.0,108100.0,0.18601388]
[1756708261396,0.67441172,108110.0,108100.0,0.18601388]
[1756708261804,0.67441172,108110.0,108100.0,0.00100001]
[1756708263119,0.34155676,108110.0,108100.0,0.00100001]
[1756708263454,0.67441172,108110.0,108100.0,0.00100001]
[1756708264084,0.76739173,108110.0,108100.0,0.00100001]
[1756708264290,0.83847173,108110.0,108100.0,0.00100001]
[1756708265123,0.84764661,108110.0,108100.0,0.00100001]
[1756708265333,0.51479165,108110.0,108100.0,0.00100001]
[1756708265536,0.84764661,108110.0,108100.0,0.00100001]
[1756708265951,0.69208661,108110.0,108100.0,0.00100001]
[1756708266164,0.49791497,108110.0,108100.0,0.18601388]
[1756708266374,0.50585677,108110.0,108100.0,0.18601388]
[1756708266802,0.50585677,108110.0,108100.0,0.00100001]
[1756708266803,0.84777897,108110.0,108100.0,0.00100001]
[1756708267011,1.18777897,108110.0,108100.0,0.00100001]
[1756708267218,1.21787724,108110.0,108100.0,0.00100001]
[1756708267438,1.23881606,108110.0,108100.0,0.00100001]
[1756708267645,1.20871779,108110.0,108100.0,0.00100001]
[1756708268447,1.20871779,108110.0,108100.0,1e-08]
[1756708269326,1.20771779,108110.0,108100.0,1e-08]
[1756708269557,1.21171779,108110.0,108100.0,1e-08]
[1756708269979,0.72306283,108110.0,108100.0,1e-08]
[1756708270185,1.05491779,108110.0,108100.0,1e-08]
[1756708270389,1.21075779,108110.0,108100.0,1e-08]
[1756708270596,1.21375779,108110.0,108100.0,1e-08]
[1756708271007,1.21075779,108110.0,108100.0,1e-08]
[1756708271185,1.20775779,108110.0,108100.0,1e-08]
[1756708271547,1.54061275,108110.0,108100.0,1e-08]
[1756708271944,1.54361275,108110.0,108100.0,1e-08]
[1756708272960,1.57141375,108110.0,108100.0,1e-08]
[1756708273157,1.57541375,108110.0,108100.0,1e-08]
[1756708273372,1.62541375,108110.0,108100.0,1e-08]
[1756708273580,1.62241375,108110.0,108100.0,1e-08]
[1756708273805,1.61841375,108110.0,108100.0,1e-08]
[1756708274208,1.62541375,108110.0,108100.0,1e-08]
[1756708274408,1.712099,108110.0,108100.0,1e-08]
[1756708274608,1.76292263,108110.0,108100.0,1e-08]
[1756708274781,1.70633565,108110.0,108100.0,1e-08]
[1756708275063,6.70633565,108110.0,108100.0,1e-08]
[1756708275656,6.74893485,108110.0,108100.0,1e-08]
[1756708278463,0.18506523,108070.0,108060.0,0.0721143]
[1756708278676,1.17075516,108070.0,108060.0,0.07225664]
[1756708279106,1.01487516,108070.0,108060.0,0.07225664]
[1756708279312,0.19190901,108070.0,108060.0,0.257339]
[1756708279525,0.8657092,108070.0,108060.0,0.257339]
[1756708279746,0.7098292,108070.0,108060.0,0.257339]
[1756708279931,0.8657092,108070.0,108060.0,0.1852247]
[1756708280784,0.52476397,108070.0,108060.0,0.1852247]
[1756708280987,0.68064397,108070.0,108060.0,0.1852247]
[1756708281399,0.8657092,108070.0,108060.0,0.1852247]
[1756708281601,0.8657092,108070.0,108060.0,0.1872247]
[1756708282387,0.8657092,108070.0,108060.0,0.1852247]
[1756708283651,0.7098292,108070.0,108060.0,0.1852247]
[1756708283870,0.027809,108070.0,108060.0,0.1852247]
[1756708284069,0.78055496,108080.0,108070.0,0.18506523]
[1756708284293,0.40397496,108090.0,108080.0,0.18504811]
[1756708284497,0.48877496,108090.0,108080.0,0.18504811]
[1756708284703,0.51657696,108090.0,108080.0,0.18504811]
[1756708284901,0.183722,108090.0,108080.0,0.18504811]
[1756708285108,0.51657696,108090.0,108080.0,0.18504811]
[1756708285509,0.48877496,108090.0,108080.0,0.18504811]
[1756708285907,0.001,108090.0,108080.0,0.18504811]
[1756708286366,0.15692,108090.0,108080.0,0.18504811]
[1756708287709,0.15892,108090.0,108080.0,0.18504811]
[1756708287933,0.15792,108090.0,108080.0,0.18504811]
[1756708288248,0.29316559,108110.0,108080.0,0.18504811]
[1756708288249,0.098919,108110.0,108080.0,0.18504811]
[1756708288403,0.37689577,108110.0,108100.0,0.18501387]
[1756708288724,0.68063397,108110.0,108100.0,0.18501387]
[1756708288929,0.43177396,108110.0,108100.0,0.18501387]
[1756708289132,0.40397496,108110.0,108100.0,0.18501387]
[1756708289310,0.55989496,108110.0,108100.0,0.18501387]
[1756708289481,0.55989496,108110.0,108100.0,0.18515621]
[1756708289689,0.74689172,108110.0,108100.0,0.18515621]
[1756708289923,0.7563628,108110.0,108100.0,0.18515621]
[1756708290132,0.7543628,108110.0,108100.0,0.18515621]
[1756708290370,0.84734281,108110.0,108100.0,0.00014234]
[1756708291116,0.85034281,108110.0,108100.0,0.00014234]
[1756708291747,0.85234281,108110.0,108100.0,0.00014234]
[1756708298583,0.88014081,108110.0,108100.0,0.00014234]
[1756708300889,0.88006081,108110.0,108100.0,0.00014234]
[1756708301989,1.32776081,108110.0,108100.0,0.00014234]
[1756708308045,0.88006081,108110.0,108100.0,0.00014234]
[1756708308622,0.52975297,108110.0,108100.0,0.18746888]
[1756708308861,0.40897496,108110.0,108100.0,0.18515621]
[1756708309070,0.56477496,108110.0,108100.0,0.18515621]
[1756708309419,0.49361496,108110.0,108100.0,0.18515621]
[1756708311182,0.49161496,108110.0,108100.0,0.18515621]
[1756708312032,0.004,108110.0,108100.0,0.18515621]
[1756708312190,0.48957496,108110.0,108100.0,0.18515621]
[1756708312390,0.48957496,108110.0,108100.0,0.22760518]
[1756708312833,0.49257496,108110.0,108100.0,0.22760518]
[1756708313434,0.48957496,108110.0,108100.0,0.22760518]
[1756708314185,0.49057496,108110.0,108100.0,0.22760518]
[1756708314409,0.49057496,108110.0,108100.0,0.23695867]
[1756708314571,0.48957496,108110.0,108100.0,0.23695867]
[1756708314928,0.48957496,108110.0,108100.0,0.22760518]
[1756708315507,0.48957496,108110.0,108100.0,0.22860518]
[1756708317932,0.48957496,108110.0,108100.0,0.18615621]
[1756708318693,0.15672,108110.0,108100.0,0.18615621]
[1756708319024,0.48957496,108110.0,108100.0,0.18615621]
[1756708319223,0.15672,108110.0,108100.0,0.18615621]
[1756708319424,0.48957496,108110.0,108100.0,0.18615621]
[1756708321945,0.67457172,108110.0,108100.0,0.18615621]
[1756708322150,0.76755173,108110.0,108100.0,0.00114234]
[1756708322322,0.83867173,108110.0,108100.0,0.00114234]
[1756708322683,1.28637173,108110.0,108100.0,0.00114234]
[1756708327225,1.31417073,108110.0,108100.0,0.00114234]
[1756708327576,1.15845073,108110.0,108100.0,0.00114234]
[1756708327805,1.28629173,108110.0,108100.0,0.00114234]
[1756708328012,1.28629173,108110.0,108100.0,0.18615621]
[1756708328214,1.03767172,108110.0,108100.0,0.18615621]
[1756708328416,1.19331172,108110.0,108100.0,0.18615621]
[1756708328620,0.85267496,108110.0,108100.0,0.18615621]
[1756708328823,0.67546,108110.0,108100.0,0.18615621]
[1756708329019,0.60434,108110.0,108100.0,0.18615621]
[1756708329865,0.4487,108110.0,108100.0,0.18615621]
[1756708330066,0.60438,108110.0,108100.0,0.18615621]
[1756708331066,0.4487,108110.0,108100.0,0.18615621]
[1756708331265,0.60434,108110.0,108100.0,0.18615621]
[1756708331706,0.34163676,108110.0,108100.0,0.18615621]
[1756708331969,0.15664,108110.0,108100.0,0.18615621]
[1756708332918,0.34163676,108110.0,108100.0,0.18615621]
[1756708334378,0.67449172,108110.0,108100.0,0.00114234]
[1756708334531,0.76747173,108110.0,108100.0,0.00114234]
[1756708336797,0.83855173,108110.0,108100.0,0.00114234]
[1756708340022,0.58993172,108110.0,108100.0,0.00114234]
[1756708340195,0.74549172,108110.0,108100.0,0.00114234]
[1756708342386,0.83847173,108110.0,108100.0,0.00114234]
[1756708345112,0.34147676,108110.0,108100.0,0.18846888]
[1756708345357,0.48937496,108110.0,108100.0,0.18615621]
[1756708345758,0.67437172,108110.0,108100.0,0.18615621]
[1756708346425,0.67437172,108110.0,108100.0,0.00114234]
[1756708346634,0.67437172,108110.0,108100.0,0.18615621]
[1756708350166,0.67437172,108110.0,108100.0,0.00114234]
[1756708352065,0.76735173,108110.0,108100.0,0.00114234]
[1756708353019,0.51885172,108110.0,108100.0,0.18615621]
[1756708353211,0.67429172,108110.0,108100.0,0.18615621]
[1756708356766,0.51885172,108110.0,108100.0,0.18615621]
[1756708356962,0.67429172,108110.0,108100.0,0.18615621]
[1756708359481,0.33385496,108110.0,108100.0,0.18615621]
[1756708359695,0.15644,108110.0,108100.0,0.18615621]
[1756708359829,0.34143676,108110.0,108100.0,0.18615621]
[1756708360380,0.67429172,108110.0,108100.0,0.18615621]
[1756708360943,0.67429172,108110.0,108100.0,0.00114234]
[1756708361976,0.67429172,108110.0,108100.0,0.04360798]
[1756708362373,0.67429172,108110.0,108100.0,0.22862185]
[1756708363515,0.51885172,108110.0,108100.0,0.22862185]
[1756708363718,0.001,108110.0,108100.0,0.22862185]
[1756708363926,0.001,108110.0,108100.0,0.38406185]
[1756708366784,0.001,108110.0,108100.0,0.39349006]
[1756708375232,0.001,108110.0,108100.0,0.23805006]
[1756708375486,0.001,108110.0,108100.0,0.39349006]
[1756708384862,0.001,108110.0,108100.0,1.58040503]
[1756708385188,0.001,108110.0,108100.0,1.98040503]
[1756708386294,0.001,108110.0,108100.0,1.64755007]
[1756708386498,0.4477,108130.0,108120.0,0.18497965]
[1756708386709,0.4477,108130.0,108120.0,0.34037965]
[1756708387326,0.78055496,108130.0,108120.0,0.34037965]
[1756708387530,0.4477,108130.0,108120.0,0.34037965]
[1756708387744,0.78055496,108130.0,108120.0,0.34037965]
[1756708388195,0.78155496,108130.0,108120.0,0.34037965]
[1756708392025,0.9665175,108130.0,108120.0,0.34037965]
[1756708392489,0.78155496,108130.0,108120.0,0.34037965]
[1756708392998,0.4487,108130.0,108120.0,0.34037965]
[1756708393203,0.78155496,108130.0,108120.0,0.34037965]
[1756708393425,0.9665175,108130.0,108120.0,0.18497965]
[1756708395225,0.78055496,108130.0,108120.0,0.18497965]
[1756708396724,0.9655175,108130.0,108120.0,0.18497965]
[1756708397201,0.9665175,108130.0,108120.0,0.18497965]
[1756708397415,0.63366254,108130.0,108120.0,0.18497965]
[1756708397735,0.9665175,108130.0,108120.0,0.18497965]
[1756708400022,0.18497965,108120.0,108110.0,0.18499676]
[1756708400169,1.00604957,108120.0,108110.0,0.18499676]
[1756708400491,0.67319461,108120.0,108110.0,0.18499676]
[1756708400857,0.72319461,108120.0,108110.0,0.18499676]
[1756708401269,0.18499676,108110.0,108100.0,0.1944069]
[1756708401520,0.51785172,108110.0,108100.0,0.18515621]
[1756708401743,0.33285496,108110.0,108100.0,0.18515621]
[1756708401912,0.51785172,108110.0,108100.0,0.18515621]
[1756708402261,0.51785172,108110.0,108100.0,0.22649676]
[1756708402781,0.51885172,108110.0,108100.0,0.22949676]
[1756708403337,0.18599676,108110.0,108100.0,0.22649676]
[1756708403555,0.51885172,108110.0,108100.0,0.22649676]
[1756708403983,0.001,108110.0,108100.0,0.22649676]
[1756708404187,0.33385496,108110.0,108100.0,0.22649676]
[1756708404390,0.33285496,108110.0,108100.0,0.22649676]
[1756708404953,0.33385496,108110.0,108100.0,0.22649676]
[1756708405159,0.001,108110.0,108100.0,0.22649676]
[1756708405569,0.53821496,108120.0,108110.0,0.18499676]
[1756708405934,0.72319461,108120.0,108110.0,0.18499676]
[1756708408101,0.72419461,108120.0,108110.0,0.18499676]
[1756708408472,0.54121496,108120.0,108110.0,0.18499676]
[1756708409306,0.38585496,108120.0,108110.0,0.18499676]
[1756708409515,0.54121496,108120.0,108110.0,0.18499676]
[1756708410104,0.54021496,108120.0,108110.0,0.18499676]
[1756708411016,0.72319461,108120.0,108110.0,0.18499676]
[1756708411625,0.72419461,108120.0,108110.0,0.18499676]
[1756708413032,0.72419461,108120.0,108100.0,0.38185676]
[1756708413219,0.33285496,108110.0,108100.0,0.38185676]
[1756708414745,0.33285496,108110.0,108100.0,0.38285676]
[1756708417563,0.39033965,108120.0,108110.0,0.18499676]
[1756708417781,0.72319461,108120.0,108100.0,0.22649676]
[1756708417994,0.33285496,108110.0,108100.0,0.34051621]
[1756708418398,0.33385496,108110.0,108100.0,0.34051621]
[1756708420698,0.33385496,108110.0,108100.0,0.18515621]
[1756708420899,0.51885172,108110.0,108100.0,0.38122755]
[1756708421470,0.51885172,108110.0,108100.0,0.22586755]
[1756708422780,0.51785172,108110.0,108100.0,0.22586755]
[1756708423183,0.51785172,108110.0,108100.0,0.04085368]
[1756708423402,0.51885172,108110.0,108100.0,0.04085368]
[1756708424373,0.51885172,108110.0,108100.0,0.00014234]
[1756708425020,0.18599676,108110.0,108100.0,0.18515621]
[1756708425241,0.51885172,108110.0,108100.0,0.18515621]
[1756708426440,0.51885172,108110.0,108100.0,0.00014234]
[1756708427025,0.51885172,108110.0,108100.0,0.18515621]
[1756708427438,0.51885172,108110.0,108100.0,0.00014234]
[1756708428411,0.61183173,108110.0,108100.0,0.00014234]
[1756708429289,0.76719173,108110.0,108100.0,0.00014234]
[1756708433580,0.76719173,108110.0,108100.0,0.18515621]
[1756708435290,0.76719173,108110.0,108100.0,0.00014234]
[1756708436567,0.76719173,108110.0,108100.0,0.18515621]
[1756708438654,0.79498773,108110.0,108100.0,0.18515621]
[1756708440494,0.79498773,108110.0,108100.0,0.00014234]
[1756708441502,0.79498773,108110.0,108100.0,0.18515621]
[1756708443647,0.79498773,108110.0,108100.0,0.00014234]
[1756708444026,1.14937845,108110.0,108100.0,0.00014234]
[1756708444226,1.22045845,108110.0,108100.0,0.00014234]
[1756708446039,1.06509845,108110.0,108100.0,0.00014234]
[1756708446241,1.22045845,108110.0,108100.0,0.00014234]
[1756708448218,0.88735974,108110.0,108100.0,0.00014234]
[1756708450888,1.22735974,108110.0,108100.0,0.00014234]
[1756708452003,1.56056789,108110.0,108100.0,0.00014234]
[1756708452520,1.22735974,108110.0,108100.0,0.00014234]
[1756708452807,1.07199974,108110.0,108100.0,0.00014234]
[1756708453011,1.22735974,108110.0,108100.0,0.00014234]
[1756708457350,1.05106092,108110.0,108100.0,0.00014234]
[1756708457558,1.20642092,108110.0,108100.0,0.18515621]
[1756708457730,1.22735974,108110.0,108100.0,0.18515621]
[1756708457926,0.19285601,108110.0,108100.0,0.18515621]
[1756708458222,0.34821601,108110.0,108100.0,0.18515621]
[1756708458393,0.68142416,108110.0,108100.0,0.18515621]
[1756708458694,0.86642092,108110.0,108100.0,0.18515621]
[1756708458919,0.52606416,108110.0,108100.0,0.18515621]
[1756708459042,0.68142416,108110.0,108100.0,0.18515621]
[1756708460697,0.86642092,108110.0,108100.0,0.18515621]
[1756708460893,0.028796,108110.0,108100.0,0.18515621]
[1756708461143,0.184156,108110.0,108100.0,0.18515621]
[1756708461270,0.15636,108110.0,108100.0,0.18515621]
[1756708462030,0.15536,108110.0,108100.0,0.18515621]
[1756708462206,0.15636,108110.0,108100.0,0.18515621]
[1756708462416,0.15632,108110.0,108100.0,0.18515621]
[1756708463144,0.15632,108110.0,108100.0,0.22579255]
[1756708463569,0.001,108110.0,108100.0,0.22579255]
[1756708464410,0.001,108110.0,108100.0,0.25358455]
[1756708465133,0.20532,108120.0,108110.0,0.18499676]
[1756708466091,0.7235078,108120.0,108110.0,0.18499676]
[1756708466645,0.7245078,108120.0,108110.0,0.18499676]
[1756708466779,0.53952815,108120.0,108110.0,0.18499676]
[1756708466978,0.56732015,108120.0,108110.0,0.18499676]
[1756708467205,0.7522998,108120.0,108110.0,0.18499676]
[1756708478071,0.7522598,108120.0,108110.0,0.18499676]
[1756708479032,0.5969798,108120.0,108110.0,0.18499676]
[1756708479235,0.7522598,108120.0,108110.0,0.18499676]
[1756708482971,0.56728015,108120.0,108110.0,0.18499676]
[1756708483360,0.7522598,108120.0,108110.0,0.18499676]
[1756708486163,0.18499676,108110.0,108100.0,0.22579255]
[1756708486339,0.51820491,108110.0,108100.0,0.18515621]
[1756708487077,0.54599991,108110.0,108100.0,0.18515621]
[1756708487679,0.54599991,108110.0,108100.0,0.18615621]
[1756708488915,0.54599991,108110.0,108100.0,0.00114234]
[1756708491851,0.99369991,108110.0,108100.0,0.00114234]
[1756708493403,1.14897991,108110.0,108100.0,0.00114234]
[1756708494009,1.22005991,108110.0,108100.0,0.00114234]
[1756708494238,1.33397874,108110.0,108100.0,0.00114234]
[1756708494908,1.17869874,108110.0,108100.0,0.00114234]